[Event "Sabato rapido!"]
[Site "Chess.com"]
[Date "2020.05.16"]
[Round "5"]
[White "fisherpez"]
[Black "APipitone"]
[Result "0-1"]
[WhiteElo "1532"]
[BlackElo "1682"]
[TimeControl "720+3"]
[EndTime "8:05:59 PDT"]
[Termination "APipitone ha vinto per abbandono"]

1. e3 {[%clk 0:12:02.9]} 1... e5 {[%clk 0:11:51.2]} 2. b3 {[%clk 0:11:59.9]}
2... d5 {[%clk 0:11:45.8]} 3. Bb2 {[%clk 0:12:00.9]} 3... Nc6 {[%clk 0:11:45.4]}
4. Bb5 {[%clk 0:12:02.2]} 4... Bd7 {[%clk 0:11:44.4]} 5. Bxc6 {[%clk 0:12:00.4]}
5... bxc6 {[%clk 0:11:44.7]} 6. Bxe5 {[%clk 0:12:02.2]} 6... Nf6 {[%clk
0:11:22.5]} 7. Qf3 {[%clk 0:11:58.2]} 7... Be7 {[%clk 0:11:16.3]} 8. Qe2 {[%clk
0:11:34.7]} 8... O-O {[%clk 0:11:19.2]} 9. Bxf6 {[%clk 0:11:32.1]} 9... Bxf6
{[%clk 0:11:19]} 10. d4 {[%clk 0:11:25.3]} 10... Re8 {[%clk 0:11:02.8]} 11. Nf3
{[%clk 0:11:22.1]} 11... c5 {[%clk 0:10:48.6]} 12. c3 {[%clk 0:11:23.3]} 12...
cxd4 {[%clk 0:10:43.1]} 13. cxd4 {[%clk 0:11:23.3]} 13... c5 {[%clk 0:10:36.9]}
14. Qd2 {[%clk 0:11:01.4]} 14... cxd4 {[%clk 0:10:30.9]} 15. Nxd4 {[%clk
0:11:02.2]} 15... Qb6 {[%clk 0:10:25.1]} 16. O-O {[%clk 0:10:59.9]} 16... Rac8
{[%clk 0:10:15.5]} 17. Nc3 {[%clk 0:10:48.4]} 17... Qb4 {[%clk 0:10:02.3]} 18.
Nb1 {[%clk 0:10:26.4]} 18... Qxd2 {[%clk 0:09:50.4]} 19. Nxd2 {[%clk 0:10:28.1]}
19... Rc3 {[%clk 0:09:31.9]} 20. h3 {[%clk 0:10:10.5]} 20... Rec8 {[%clk
0:09:25.8]} 21. Rad1 {[%clk 0:09:43.2]} 21... Rc2 {[%clk 0:09:21.4]} 22. Nxc2
{[%clk 0:09:43.3]} 22... Rxc2 {[%clk 0:09:16.3]} 23. a4 {[%clk 0:09:35]} 23...
Be6 {[%clk 0:08:32.7]} 24. Nf3 {[%clk 0:09:35.1]} 24... Rb2 {[%clk 0:08:14.8]}
25. Rb1 {[%clk 0:09:33.6]} 25... Ra2 {[%clk 0:08:06.9]} 26. Nd4 {[%clk
0:09:30.9]} 26... g6 {[%clk 0:07:38.6]} 27. Rfc1 {[%clk 0:09:09]} 27... Kg7
{[%clk 0:07:33.4]} 28. Nxe6+ {[%clk 0:09:09.6]} 28... fxe6 {[%clk 0:07:32.5]}
29. Rc7+ {[%clk 0:09:10.7]} 29... Kh6 {[%clk 0:07:21.2]} 30. Rxa7 {[%clk
0:09:11.4]} 30... d4 {[%clk 0:07:09.9]} 31. exd4 {[%clk 0:09:12.2]} 31... Bxd4
{[%clk 0:07:09.4]} 32. Rf1 {[%clk 0:09:13.7]} 32... Bxa7 {[%clk 0:07:06.6]} 33.
Rb1 {[%clk 0:08:58.6]} 33... Kg5 {[%clk 0:06:55.7]} 34. b4 {[%clk 0:09:00.2]}
34... Bxf2+ {[%clk 0:06:52.5]} 35. Kh1 {[%clk 0:09:01.6]} 35... Rxa4 {[%clk
0:06:40]} 36. b5 {[%clk 0:09:03.5]} 36... Bb6 {[%clk 0:06:35.6]} 37. g3 {[%clk
0:08:54.7]} 37... Ra2 {[%clk 0:06:31.3]} 38. Rb3 {[%clk 0:08:52.9]} 38... e5
{[%clk 0:06:27.9]} 39. Rd3 {[%clk 0:08:46.8]} 39... Rb2 {[%clk 0:06:23.7]} 40.
Rd5 {[%clk 0:08:48.3]} 40... Bd4 {[%clk 0:06:10.7]} 41. Rd7 {[%clk 0:08:23.9]}
41... Rxb5 {[%clk 0:05:56.2]} 42. Rxh7 {[%clk 0:08:24.5]} 42... Rb1+ {[%clk
0:05:51.1]} 43. Kg2 {[%clk 0:08:26]} 43... Rg1+ {[%clk 0:05:45.9]} 44. Kh2
{[%clk 0:08:26.5]} 44... Rd1 {[%clk 0:05:39.6]} 45. Rh4 {[%clk 0:08:26]} 45...
Rd2+ {[%clk 0:05:28.1]} 46. Kh1 {[%clk 0:08:26]} 46... Kf5 {[%clk 0:05:12.6]}
47. Rh8 {[%clk 0:08:15.5]} 47... Ke4 {[%clk 0:05:01]} 48. h4 {[%clk 0:08:11]}
48... Kf3 {[%clk 0:05:00]} 49. Rf8+ {[%clk 0:07:59]} 49... Kxg3 {[%clk
0:03:49.5]} 50. Rf3+ {[%clk 0:07:59.3]} 50... Kxf3 {[%clk 0:03:45]} 51. h5
{[%clk 0:08:01.6]} 51... Kg3 {[%clk 0:03:33.4]} 0-1

[Event "Sabato rapido!"]
[Site "Chess.com"]
[Date "2020.05.16"]
[Round "5"]
[White "laremaro"]
[Black "fausto2p"]
[Result "1/2-1/2"]
[WhiteElo "1625"]
[BlackElo "1205"]
[TimeControl "720+3"]
[EndTime "8:08:48 PDT"]
[Termination "Partita patta per ripetizione di mosse"]

1. e4 {[%clk 0:12:02.9]} 1... e6 {[%clk 0:12:00.5]} 2. d3 {[%clk 0:11:59]} 2...
d5 {[%clk 0:12:00.9]} 3. Nd2 {[%clk 0:12:01.4]} 3... c5 {[%clk 0:11:44.1]} 4.
Ngf3 {[%clk 0:12:03.2]} 4... Nc6 {[%clk 0:11:39.9]} 5. g3 {[%clk 0:12:05]} 5...
Nf6 {[%clk 0:11:19.3]} 6. Bg2 {[%clk 0:12:05.7]} 6... Rb8 {[%clk 0:10:51.9]} 7.
O-O {[%clk 0:12:05]} 7... dxe4 {[%clk 0:10:16.5]} 8. dxe4 {[%clk 0:11:58.8]}
8... e5 {[%clk 0:10:13.2]} 9. Nc4 {[%clk 0:11:40.1]} 9... Qc7 {[%clk 0:09:30.3]}
10. a4 {[%clk 0:11:28.1]} 10... Be7 {[%clk 0:09:26.7]} 11. Re1 {[%clk
0:11:24.9]} 11... O-O {[%clk 0:09:27.6]} 12. c3 {[%clk 0:11:25.4]} 12... Rd8
{[%clk 0:08:55.8]} 13. Qc2 {[%clk 0:11:14.4]} 13... Be6 {[%clk 0:08:21.4]} 14.
Ne3 {[%clk 0:10:51.8]} 14... Na5 {[%clk 0:07:46.8]} 15. Ng5 {[%clk 0:10:00.1]}
15... Bb3 {[%clk 0:07:43.1]} 16. Qe2 {[%clk 0:10:01.6]} 16... h6 {[%clk
0:07:23.9]} 17. Nf3 {[%clk 0:09:52.7]} 17... Be6 {[%clk 0:07:07.8]} 18. Nh4
{[%clk 0:09:51.9]} 18... Nb3 {[%clk 0:06:58.8]} 19. Rb1 {[%clk 0:09:45.5]} 19...
Rd7 {[%clk 0:06:09]} 20. Nhf5 {[%clk 0:09:35.8]} 20... Nxc1 {[%clk 0:05:05.5]}
21. Rbxc1 {[%clk 0:09:34.4]} 21... Rbd8 {[%clk 0:04:47.2]} 22. Nxe7+ {[%clk
0:09:25.1]} 22... Rxe7 {[%clk 0:04:46.6]} 23. Rcd1 {[%clk 0:09:22.4]} 23... Red7
{[%clk 0:04:29.1]} 24. Rxd7 {[%clk 0:09:23.1]} 24... Rxd7 {[%clk 0:04:27]} 25.
Rd1 {[%clk 0:09:18.7]} 25... Rxd1+ {[%clk 0:03:51.2]} 26. Qxd1 {[%clk
0:09:19.3]} 26... Qb6 {[%clk 0:03:32.9]} 27. Nd5 {[%clk 0:08:24.4]} 27... Qxb2
{[%clk 0:03:18]} 28. Nxf6+ {[%clk 0:07:55]} 28... gxf6 {[%clk 0:03:18.4]} 29. h4
{[%clk 0:07:43.9]} 29... Qxc3 {[%clk 0:03:05.6]} 30. Qd8+ {[%clk 0:06:47.1]}
30... Kg7 {[%clk 0:03:03.9]} 31. Qd1 {[%clk 0:06:40.1]} 31... Qd4 {[%clk
0:02:58.1]} 32. Qe2 {[%clk 0:06:38.9]} 32... Qxa4 {[%clk 0:02:50.8]} 33. Kh2
{[%clk 0:06:40]} 33... Qd4 {[%clk 0:02:42]} 34. Bh3 {[%clk 0:06:12.8]} 34... c4
{[%clk 0:02:02.9]} 35. Bxe6 {[%clk 0:06:11.1]} 35... fxe6 {[%clk 0:02:03.3]} 36.
Qg4+ {[%clk 0:06:13.7]} 36... Kh7 {[%clk 0:01:56]} 37. Qxe6 {[%clk 0:06:13]}
37... Qxf2+ {[%clk 0:01:54.2]} 38. Kh3 {[%clk 0:06:13]} 38... Qf1+ {[%clk
0:01:39.2]} 39. Kh2 {[%clk 0:06:13.6]} 39... Qe2+ {[%clk 0:01:31.7]} 40. Kh3
{[%clk 0:06:13.7]} 40... Qxe4 {[%clk 0:01:28.5]} 41. Qf7+ {[%clk 0:06:10]} 41...
Kh8 {[%clk 0:01:27.8]} 42. Qf8+ {[%clk 0:06:11.8]} 42... Kh7 {[%clk 0:01:28.8]}
43. Qf7+ {[%clk 0:06:14.3]} 43... Kh8 {[%clk 0:01:30.5]} 44. Qf8+ {[%clk
0:06:16.5]} 44... Kh7 {[%clk 0:01:32.3]} 45. Qf7+ {[%clk 0:06:19.1]} 1/2-1/2